{"text_format":"3","workbook":"xlsx","n_sheets":1,"sheets":["Протокол ШЭ ВОШ по предмету"],"not_rendered":{"defined_names":1},"read":"whole","date_system":"1900"}

{"sheet":"Протокол ШЭ ВОШ по предмету","index":0,"n_rows":33,"n_cols":15,"rows_kept":33}
["№","Фамилия","Имя","Отчество","Дата рождения","Пол","Участник с ОВЗ (да/нет)","Класс обучения","Класс участия","Балл","Максимальный балл","Статус","Призёр муниципального этапа прошлого года","ФИО учителя","Место работы учителя"]
[1,"Бородина ","Софья ","Романовна","2009-12-26","Ж","нет",6,"6",8,50,"участник","нет","Салихова Алёна Владимировна","Муниципальное автономное общеобразовательное учреждение \"Лицей инновационных технологий № 36\""]
[2,"Третьякова ","Елизавета ","Георгиевна","2010-12-25","Ж","нет",6,"6",14,50,"участник","нет","Салихова Алёна Владимировна",{"$f":"$O$2","v":"Муниципальное автономное общеобразовательное учреждение \"Лицей инновационных технологий № 36\""}]
[3,"Хасанов","Данила","Маратович","2009-12-07","М","нет",6,6,18,50,"участник","нет","Салихова Алёна Владимировна","Муниципальное автономное общеобразовательное учреждение \"Лицей инновационных технологий № 36\""]
[4,"Лесников ","Кирилл","Антонович","2010-01-22","М","нет",6,6,18,50,"участник","нет","Салихова Алёна Владимировна","Муниципальное автономное общеобразовательное учреждение \"Лицей инновационных технологий № 36\""]
[5,"Пешехонов","Владислав ","Владимирович","2008-03-23","М","нет",8,8,26,70,"участник","нет","Салихова Алёна Владимировна","Муниципальное автономное общеобразовательное учреждение \"Лицей инновационных технологий № 36\""]
[6,"Никулин","Матвей ","Андреевич","2008-07-02","М","нет",8,8,34,70,"участник","нет","Салихова Алёна Владимировна","Муниципальное автономное общеобразовательное учреждение \"Лицей инновационных технологий № 36\""]
[7,"Прозоров ","Даниил ","Антонович","2008-01-04","М","нет",8,8,34,70,"участник","нет","Салихова Алёна Владимировна","Муниципальное автономное общеобразовательное учреждение \"Лицей инновационных технологий № 36\""]
[8,"Миннебаев","Данил","Ренатович","2008-03-30","М","нет",8,8,34,70,"участник","нет","Салихова Алёна Владимировна","Муниципальное автономное общеобразовательное учреждение \"Лицей инновационных технологий № 36\""]
[9,"Закиров","Данил ","Алмазович","2008-04-06","М","нет",8,8,37,70,"призер","нет","Салихова Алёна Владимировна","Муниципальное автономное общеобразовательное учреждение \"Лицей инновационных технологий № 36\""]
[10,"Мухасимов ","Эльмир ","Равилевич","2008-07-11","М","нет",8,8,38,70,"призер","нет","Салихова Алёна Владимировна","Муниципальное автономное общеобразовательное учреждение \"Лицей инновационных технологий № 36\""]
[11,"Туктамышев ","Павел ","Аликович","2009-12-23","М","нет",7,7,42,70,"призер","нет","Салихова Алёна Владимировна","Муниципальное автономное общеобразовательное учреждение \"Лицей инновационных технологий № 36\""]
[12,"Смаков ","Камиль ","Ленарович","2009-08-12","М","нет",7,7,48,70,"призер","нет","Салихова Алёна Владимировна","Муниципальное автономное общеобразовательное учреждение \"Лицей инновационных технологий № 36\""]
[13,"Леонтьев ","Никита ","Ильич ","2009-04-15","М","нет",7,7,50,70,"призер","нет","Салихова Алёна Владимировна","Муниципальное автономное общеобразовательное учреждение \"Лицей инновационных технологий № 36\""]
[14,"Замалетдинов ","Алэн ","Марселевич ","2009-01-04","М","нет",7,7,58,70,"призер","нет","Салихова Алёна Владимировна","Муниципальное автономное общеобразовательное учреждение \"Лицей инновационных технологий № 36\""]
[15,"Ахметвалиев ","Вадим ","Артурович ","2008-06-07","М","нет",8,8,70,70,"победитель","нет","Салихова Алёна Владимировна","Муниципальное автономное общеобразовательное учреждение \"Лицей инновационных технологий № 36\""]
[16,"Шишков","Данил","Юрьевич","2007-03-25","М","нет",9,9,84,100,"победитель","нет","Салихова Алёна Владимировна","Муниципальное автономное общеобразовательное учреждение \"Лицей инновационных технологий № 36\""]
[17,"Аристов","Евгений","Александрович","2007-08-10","М","нет",9,9,72,100,"призер","нет","Салихова Алёна Владимировна","Муниципальное автономное общеобразовательное учреждение \"Лицей инновационных технологий № 36\""]
[18,"Силуянова","Ангелина","Ринатовна","2007-08-23","Ж","нет",9,9,68,100,"призер","нет","Салихова Алёна Владимировна","Муниципальное автономное общеобразовательное учреждение \"Лицей инновационных технологий № 36\""]
[19,"Шевченко","Милана","Сергеевна","2007-01-27","Ж","нет",9,9,68,100,"призер","нет","Салихова Алёна Владимировна","Муниципальное автономное общеобразовательное учреждение \"Лицей инновационных технологий № 36\""]
[20,"Маликова","Аиша","Вагифовна","2007-09-06","Ж","нет",9,9,52,100,"призер","нет","Салихова Алёна Владимировна","Муниципальное автономное общеобразовательное учреждение \"Лицей инновационных технологий № 36\""]
[21,"Голубин","Тимерхан","Александрович","2007-02-20","М","нет",9,9,46,100,"участник","нет","Салихова Алёна Владимировна","Муниципальное автономное общеобразовательное учреждение \"Лицей инновационных технологий № 36\""]
[22,"Уханова","наталья","Юрьевна","2007-03-25","Ж","нет",9,9,42,100,"участник","нет","Салихова Алёна Владимировна","Муниципальное автономное общеобразовательное учреждение \"Лицей инновационных технологий № 36\""]
[23,"Жукова","Валерия ","Игоревна","2005-12-21","Ж","нет",10,10,63,100,"победитель","нет","Салихова Алёна Владимировна","Муниципальное автономное общеобразовательное учреждение \"Лицей инновационных технологий № 36\""]
[24,"Жадина","Амалия","Валерьевна","2006-02-26","Ж","нет",10,10,63,100,"победитель","нет","Салихова Алёна Владимировна","Муниципальное автономное общеобразовательное учреждение \"Лицей инновационных технологий № 36\""]
[25,"Кондратьев","Мирон","Алексеевич","2006-03-23","М","нет",10,10,63,100,"победитель","нет","Салихова Алёна Владимировна","Муниципальное автономное общеобразовательное учреждение \"Лицей инновационных технологий № 36\""]
[26,"Якупов","Даниил","Русланович","2006-05-25","М","нет",10,10,59,100,"призер","нет","Салихова Алёна Владимировна","Муниципальное автономное общеобразовательное учреждение \"Лицей инновационных технологий № 36\""]
[27,"Белоросюк","Полина","Олеговна","2006-10-23","Ж","нет",10,10,57,100,"призер","нет","Салихова Алёна Владимировна","Муниципальное автономное общеобразовательное учреждение \"Лицей инновационных технологий № 36\""]
[28,"Леонтьева","Тамила","Валерьевна","2006-10-04","Ж","нет",10,10,57,100,"призер","нет","Салихова Алёна Владимировна","Муниципальное автономное общеобразовательное учреждение \"Лицей инновационных технологий № 36\""]
[29,"Шайдуллина","Аделя","Марселевна","2006-08-09","Ж","нет",10,10,57,100,"призер","нет","Салихова Алёна Владимировна","Муниципальное автономное общеобразовательное учреждение \"Лицей инновационных технологий № 36\""]
[30,"Сурело","Дарья ","Сергеевна","2005-10-02","Ж","нет",11,"11",58,100,"призер","нет","Муллин Айрат Адгамбикович","Муниципальное автономное общеобразовательное учреждение \"Лицей инновационных технологий № 36\""]
[31,"Мустафина ","Камила ","Василовна","2005-10-08","Ж","нет",11,"11",50,100,"призер","нет","Муллин Айрат Адгамбикович","Муниципальное автономное общеобразовательное учреждение \"Лицей инновационных технологий № 36\""]
[32,"Хабибуллина ","Алсу","Ильдаровна","2005-02-17","Ж","нет",11,"11",58,100,"призер","нет","Муллин Айрат Адгамбикович","Муниципальное автономное общеобразовательное учреждение \"Лицей инновационных технологий № 36\""]